bitfinex-derivatives/quotes_BNBF0:USTF0_20250112
["timestamp","ask_amount","ask_price","bid_price","bid_amount"]
[1736714532506,1.07408001,696.6,695.43,0.28759184]
[1736714533707,1.07408001,696.61,695.43,0.28759184]
[1736714534507,1.07408001,696.62,695.43,0.28759184]
[1736714536111,1.07408001,696.63,695.43,0.28759184]
[1736714537813,1.07540009,696.96,695.43,0.28759184]
[1736714537814,1.07408001,696.64,695.43,0.28759184]
[1736714539013,1.07408001,696.61,695.43,0.28759184]
[1736714540614,0.26400101,696.6,695.43,0.28759184]
[1736714540815,1.07408001,696.54,695.43,0.28759184]
[1736714542110,1.07408001,696.51,695.43,0.28759184]
[1736714548416,1.07408001,696.56,695.43,0.28759184]
[1736714549620,1.07408001,696.57,695.43,0.28759184]
[1736714550319,1.07408001,696.58,695.43,0.28759184]
[1736714553514,1.07408001,696.55,695.43,0.28759184]
[1736714554521,2.17770996,696.99,695.43,0.28759184]
[1736714554522,1.07408001,696.56,695.43,0.28759184]
[1736714555321,0.88722985,696.99,695.43,0.28759184]
[1736714555322,1.07408001,696.53,695.43,0.28759184]
[1736714556122,1.07408001,696.52,695.43,0.28759184]
[1736714558922,1.07408001,696.5,695.43,0.28759184]
[1736714562418,1.07408001,696.53,695.43,0.28759184]
[1736714564319,1.07408001,696.54,695.43,0.28759184]
[1736714567724,1.07408001,696.53,695.43,0.28759184]
[1736714569024,1.07408001,696.54,695.43,0.28759184]
[1736714569925,1.07408001,696.53,695.43,0.28759184]
[1736714571525,1.07408001,696.5,695.43,0.28759184]
[1736714572225,1.07408001,696.47,695.43,0.28759184]
[1736714573422,1.07408001,696.45,695.43,0.28759184]
[1736714574627,1.07408001,696.46,695.43,0.28759184]
[1736714575829,1.07408001,696.45,695.43,0.28759184]
[1736714579630,1.07408001,696.48,695.43,3.27273243]
[1736714580434,1.07408001,696.54,695.43,3.27273243]
[1736714580632,1.07408001,696.54,695.43,0.28759184]
[1736714581529,1.07408001,696.55,695.43,0.28759184]
[1736714586440,1.07408001,696.51,695.43,0.28759184]
[1736714588543,1.07408001,696.52,695.43,0.28759184]
[1736714589538,1.07408001,696.51,695.43,0.28759184]
[1736714590438,1.07408001,696.45,695.43,0.28759184]
[1736714591544,1.07408001,696.46,695.43,0.28759184]
[1736714592747,1.07408001,696.49,695.43,0.28759184]
[1736714593847,1.07408001,696.48,695.43,0.28759184]
[1736714594748,1.07408001,696.46,695.43,0.28759184]
[1736714595547,1.07408001,696.47,695.43,0.28759184]
[1736714599249,1.07408001,696.46,695.43,0.28759184]
[1736714601053,1.07408001,696.5,695.43,0.28759184]
[1736714602053,1.07408001,696.46,695.43,0.28759184]
[1736714602654,1.07408001,696.54,695.43,0.28759184]
[1736714605557,1.07540009,696.77,695.43,0.28759184]
[1736714605558,1.07408001,696.55,695.43,0.28759184]
[1736714606458,1.07408001,696.54,695.43,0.28759184]
[1736714607263,1.07408001,696.49,695.43,0.28759184]
[1736714609260,1.07408001,696.52,695.43,0.28759184]
[1736714609960,0.88722985,696.9,695.43,0.28759184]
[1736714609961,1.07408001,696.53,695.43,0.28759184]
[1736714611260,1.07408001,696.55,695.43,0.28759184]
[1736714613262,1.07408001,696.56,695.43,0.28759184]
[1736714614364,1.07408001,696.59,695.43,0.28759184]
[1736714615361,0.88722985,696.9,695.43,0.28759184]
[1736714615362,1.07408001,696.6,695.43,0.28759184]
[1736714616763,1.07408001,696.62,695.43,0.28759184]
[1736714617368,0.26404504,696.61,695.43,0.28759184]
[1736714618368,1.07408001,696.55,695.43,0.28759184]
[1736714621266,1.07408001,696.67,695.43,0.28759184]
[1736714622370,1.07408001,696.68,695.43,0.28759184]
[1736714623170,1.07408001,696.69,695.43,0.28759184]
[1736714625273,1.07408001,696.68,695.43,0.28759184]
[1736714626070,1.07408001,696.67,695.43,0.28759184]
[1736714626570,0.26401363,696.66,695.43,0.28759184]
[1736714626967,1.07408001,696.64,695.43,0.28759184]
[1736714627971,1.07408001,696.63,695.43,0.28759184]
[1736714628171,0.26402866,696.62,695.43,0.28759184]
[1736714628774,1.07408001,696.58,695.43,0.28759184]
[1736714628975,0.26405256,696.57,695.43,0.28759184]
[1736714629575,1.07408001,696.54,695.43,0.28759184]
[1736714630577,0.26405551,696.53,695.43,0.28759184]
[1736714631669,1.07408001,696.43,695.43,0.28759184]
[1736714632776,1.07408001,696.45,695.43,0.28759184]
[1736714633881,1.07540009,696.71,695.43,0.28759184]
[1736714633882,1.07408001,696.44,695.43,0.28759184]
[1736714634679,1.07408001,696.43,695.43,0.28759184]
[1736714638581,1.07408001,696.42,695.43,0.28759184]
[1736714641585,1.07408001,696.4,695.43,0.28759184]
[1736714642584,1.07408001,696.39,695.43,0.28759184]
[1736714643685,1.07408001,696.43,695.43,0.28759184]
[1736714647884,1.07408001,696.44,695.43,0.28759184]
[1736714654087,1.07408001,696.45,695.43,0.28759184]
[1736714655094,1.07408001,696.47,695.43,0.28759184]
[1736714656992,1.07408001,696.49,695.43,0.28759184]
[1736714658093,1.07540009,696.71,695.43,0.28759184]
[1736714658094,1.07408001,696.48,695.43,0.28759184]
[1736714660298,1.07408001,696.45,695.43,0.28759184]
[1736714662399,1.07408001,696.49,695.43,0.28759184]
[1736714664495,1.07408001,696.5,695.43,0.28759184]
[1736714665501,1.07408001,696.51,695.43,0.28759184]
[1736714666400,1.07408001,696.52,695.43,0.28759184]
[1736714667307,1.07408001,696.63,695.43,0.28759184]
[1736714668405,1.07408001,696.64,695.43,0.28759184]
[1736714671501,1.07408001,696.65,695.43,0.28759184]
[1736714672510,1.07408001,696.64,695.43,0.28759184]
[1736714674010,1.07408001,696.65,695.43,0.28759184]
[1736714676808,0.26400835,696.64,695.43,0.28759184]
[1736714677710,1.07408001,696.54,695.43,0.28759184]
[1736714679909,1.07408001,696.53,695.43,0.28759184]
[1736714681615,1.07408001,696.67,695.43,0.28759184]
[1736714683713,1.07408001,696.69,695.43,0.28759184]
[1736714684715,1.07408001,696.7,695.43,0.28759184]
[1736714686715,1.07408001,696.71,695.43,0.28759184]
[1736714687517,1.07408001,696.7,695.43,0.28759184]
[1736714688719,1.07408001,696.69,695.43,0.28759184]
[1736714689518,1.07408001,696.68,695.43,0.28759184]
[1736714690820,0.26398799,696.67,695.43,0.28759184]
[1736714691514,1.07408001,696.56,695.43,0.28759184]
[1736714692518,1.07408001,696.58,695.43,0.28759184]
[1736714693313,1.07408001,696.57,695.43,0.28759184]
[1736714694115,1.07408001,696.6,695.43,0.28759184]
[1736714695222,1.07408001,696.61,695.43,0.28759184]
[1736714696122,1.07408001,696.6,695.43,0.28759184]
[1736714696723,1.07408001,696.61,695.43,0.28759184]
[1736714698824,1.07408001,696.6,695.43,0.28759184]
[1736714699822,1.07408001,696.69,695.43,0.28759184]
[1736714700723,1.07408001,696.68,695.43,0.28759184]
[1736714701626,1.07408001,696.64,695.43,0.28759184]
[1736714702826,1.07408001,696.62,695.43,0.28759184]
[1736714703930,1.07408001,696.61,695.43,0.28759184]
[1736714705125,1.07408001,696.56,695.43,0.28759184]
[1736714706027,1.07408001,696.55,695.43,0.28759184]
[1736714706833,0.26401989,696.54,695.43,0.28759184]
[1736714707032,1.07408001,696.55,695.43,0.28759184]
[1736714707331,1.07408001,696.56,695.43,0.28759184]
[1736714707533,0.26404407,696.55,695.43,0.28759184]
[1736714708234,1.07408001,696.47,695.43,0.28759184]
[1736714709235,1.07408001,696.48,695.43,0.28759184]
[1736714710029,1.07408001,696.49,695.43,0.28759184]
[1736714711135,1.07408001,696.45,695.43,0.28759184]
[1736714713233,1.07408001,696.51,695.43,0.28759184]
[1736714714935,0.26407607,696.5,695.43,0.28759184]
[1736714715637,0.26408601,696.49,695.43,0.28759184]
[1736714715837,0.26408601,696.48,695.43,0.28759184]
[1736714716038,1.07408001,696.51,695.43,0.28759184]
[1736714716039,0.26408601,696.47,695.43,0.28759184]
[1736714716236,0.26408601,696.46,695.43,0.28759184]
[1736714716437,0.26408601,696.45,695.43,0.28759184]
[1736714716638,0.26408601,696.44,695.43,0.28759184]
[1736714716837,0.26408601,696.43,695.43,0.28759184]
[1736714717038,0.26408601,696.42,695.43,0.28759184]
[1736714717238,1.07408001,696.51,695.43,0.28759184]
[1736714717733,0.26409315,696.5,695.43,0.28759184]
[1736714722940,0.2641179,696.49,695.43,0.28759184]
[1736714723135,0.2641179,696.5,695.43,0.28759184]
[1736714723337,0.2641179,696.49,695.43,0.28759184]
[1736714723534,0.2641179,696.48,695.43,0.28759184]
[1736714723739,1.07408001,696.51,695.43,0.28759184]
[1736714723740,0.2641179,696.47,695.43,0.28759184]
[1736714723938,0.2641179,696.46,695.43,0.28759184]
[1736714724134,0.2641179,696.45,695.43,0.28759184]
[1736714724340,0.2641179,696.44,695.43,0.28759184]
[1736714724540,0.2641179,696.43,695.43,0.28759184]
[1736714724741,0.2641179,696.42,695.43,0.28759184]
[1736714724941,0.2641179,696.41,695.43,0.28759184]
[1736714725142,1.07408001,696.59,695.43,0.28759184]
[1736714725341,0.26411248,696.58,695.43,0.28759184]
[1736714725742,0.26411565,696.57,695.43,0.28759184]
[1736714725937,0.26411565,696.56,695.43,0.28759184]
[1736714726139,0.26411565,696.55,695.43,0.28759184]
[1736714726335,0.26411565,696.54,695.43,0.28759184]
[1736714726536,0.26411565,696.53,695.43,0.28759184]
[1736714726737,0.26411565,696.52,695.43,0.28759184]
[1736714726943,0.26411565,696.51,695.43,0.28759184]
[1736714727136,0.26411565,696.5,695.43,0.28759184]
[1736714727343,0.26411565,696.49,695.43,0.28759184]
[1736714727537,1.07408001,696.62,695.43,0.28759184]
[1736714727538,0.26411565,696.48,695.43,0.28759184]
[1736714727737,0.26411565,696.47,695.43,0.28759184]
[1736714727937,0.26411565,696.46,695.43,0.28759184]
[1736714728138,0.26411565,696.45,695.43,0.28759184]
[1736714728336,1.07408001,696.62,695.43,0.28759184]
[1736714728542,0.26411303,696.44,695.43,0.28759184]
[1736714728744,0.26411303,696.43,695.43,0.28759184]
[1736714729045,0.26411303,696.42,695.43,0.28759184]
[1736714729244,0.26411303,696.41,695.43,0.28759184]
[1736714729438,0.26411303,696.4,695.43,0.28759184]
[1736714729644,0.26411303,696.39,695.43,0.28759184]
[1736714729844,0.26411303,696.38,695.43,0.28759184]
[1736714730044,0.26411303,696.37,695.43,0.28759184]
[1736714730241,0.26411303,696.36,695.43,0.28759184]
[1736714730442,0.26411303,696.35,695.43,0.28759184]
[1736714730645,0.26411303,696.34,695.43,0.28759184]
[1736714730839,0.26411303,696.33,695.43,0.28759184]
[1736714731038,1.07408001,696.5,695.43,0.28759184]
[1736714731245,1.33819281,696.49,695.43,0.28759184]
[1736714731545,0.2641128,696.48,695.43,0.28759184]
[1736714732046,1.33819281,696.48,695.43,0.28759184]
[1736714732239,0.2641128,696.47,695.43,0.28759184]
[1736714733740,0.2641128,696.46,695.43,0.28759184]
[1736714733943,0.26411636,696.45,695.43,0.28759184]
[1736714734244,0.26411636,696.44,695.43,0.28759184]
[1736714734443,0.26411636,696.43,695.43,0.28759184]
[1736714734643,0.26411636,696.42,695.43,0.28759184]
[1736714734844,0.26411636,696.41,695.43,0.28759184]
[1736714735044,0.26411636,696.4,695.43,0.28759184]
[1736714735239,1.07408001,696.48,695.43,0.28759184]
[1736714735240,0.26411636,696.39,695.43,0.28759184]
[1736714735438,0.26411636,696.38,695.43,0.28759184]
[1736714735640,0.26411636,696.37,695.43,0.28759184]
[1736714735842,0.26411636,696.36,695.43,0.28759184]
[1736714736042,0.26411636,696.35,695.43,0.28759184]
[1736714736243,0.26411636,696.34,695.43,0.28759184]
[1736714736443,0.26411636,696.33,695.43,0.28759184]
[1736714736643,0.26411409,696.32,695.43,0.28759184]
[1736714736837,1.5004042,696.79,695.43,0.28759184]
[1736714736838,1.07408001,696.44,695.43,0.28759184]
[1736714737042,0.26411549,696.43,695.43,0.28759184]
[1736714738842,1.07408001,696.39,695.43,0.28759184]
[1736714739041,0.26411549,696.38,695.43,0.28759184]
[1736714739242,1.07408001,696.39,695.43,0.28759184]
[1736714739447,0.26413499,696.37,695.43,0.28759184]
[1736714739641,0.26413456,696.36,695.43,0.28759184]
[1736714739842,1.33821457,696.36,695.43,0.28759184]
[1736714740042,1.07408001,696.36,695.43,0.28759184]
[1736714741150,1.07408001,696.34,695.43,0.28759184]
[1736714741447,0.26413427,696.33,695.43,0.28759184]
[1736714742149,1.07408001,696.25,695.43,0.28759184]
[1736714742353,0.26413427,696.24,695.43,0.28759184]
[1736714743048,1.07408001,696.23,695.43,0.28759184]
[1736714744550,0.26413744,696.22,695.43,0.28759184]
[1736714744743,1.33821745,696.22,695.43,0.28759184]
[1736714744948,1.07408001,696.22,695.43,0.28759184]
[1736714745845,1.07408001,696.2,695.43,0.28759184]
[1736714746752,0.88613234,696.61,695.43,0.28759184]
[1736714746753,1.07408001,696.16,695.43,0.28759184]
[1736714746949,1.07408001,696.16,694.66,1.28752785]
[1736714747252,1.07408001,696.16,694.68,0.28790234]
[1736714747453,0.26417295,696.15,694.68,0.28790234]
[1736714747655,1.07408001,696.11,694.7,1.28752785]
[1736714747954,1.07408001,696.11,694.72,0.28788576]
[1736714748653,1.07408001,696.12,694.72,0.28788576]
[1736714749554,1.07408001,696.13,694.72,0.28788576]
[1736714750054,0.26416935,696.12,694.72,0.28788576]
[1736714750354,0.26416935,696.12,694.72,3.27302635]
[1736714750555,1.07408001,696.12,694.74,1.28752785]
[1736714750759,1.07408001,696.12,694.76,0.28786919]
[1736714751355,1.07408001,696.12,694.76,3.27300978]
[1736714751557,1.07408001,696.13,694.77,2.81312004]
[1736714751857,1.07408001,696.13,694.79,0.28785676]
[1736714752159,0.26416922,696.12,694.79,0.28785676]
[1736714752357,1.07408001,696.13,694.79,0.28785676]
[1736714752557,0.26416907,696.12,694.79,0.28785676]
[1736714752858,1.07408001,696.13,694.79,0.28785676]
[1736714753053,0.26416888,696.12,694.79,1.36815178]
[1736714753252,0.26416888,696.12,694.79,3.1009768]
[1736714753451,1.07408001,696.13,694.79,3.1009768]
[1736714753859,0.77463506,696.77,694.79,3.1009768]
[1736714754059,0.55131068,696.52,694.79,3.1009768]
[1736714754259,0.5513148,696.51,694.79,3.1009768]
[1736714754558,1.77465404,698.14,694.8,2.98514059]
[1736714754559,0.55131892,696.5,694.8,2.98514059]
[1736714754758,0.26416889,696.49,694.81,2.81312004]
[1736714754957,1.07413234,696.14,694.83,0.28784019]
[1736714755164,0.26416889,696.13,694.83,0.28784019]
[1736714755562,0.26417408,696.12,694.83,0.28784019]
[1736714755762,1.07413234,696.14,694.83,0.28784019]
[1736714756058,1.33830642,696.13,694.83,2.02066521]
[1736714756262,0.26417408,696.12,694.83,1.36862662]
[1736714756455,1.07413234,696.14,694.83,0.28784019]
[1736714757557,1.07413234,696.19,694.83,0.28784019]
[1736714758358,0.28715003,696.5,694.83,0.28784019]
[1736714758359,1.07413234,696.24,694.83,0.28784019]
[1736714759158,1.07413234,696.3,694.83,0.28784019]
[1736714759364,0.26417766,696.29,694.83,0.28784019]
[1736714760865,0.28715003,696.5,694.83,0.28784019]
[1736714760866,1.33831905,696.28,694.83,0.28784019]
[1736714761163,0.26418671,696.27,694.83,0.28784019]
[1736714761559,1.33831905,696.27,694.83,0.28784019]
[1736714761758,0.26418671,696.26,694.83,0.28784019]
[1736714762965,0.2641958,696.25,694.83,0.28784019]
[1736714763165,0.2641958,696.24,694.83,0.28784019]
[1736714763466,0.2641958,696.23,694.83,0.28784019]
[1736714763665,0.26420691,696.22,694.83,0.28784019]
[1736714763964,0.26420691,696.21,694.83,0.28784019]
[1736714764160,0.26420691,696.2,694.83,0.28784019]
[1736714764367,0.26420691,696.19,694.83,0.28784019]
[1736714764564,1.07413234,696.26,694.83,0.28784019]
[1736714764865,0.26420488,696.25,694.83,0.28784019]
[1736714765665,0.26419541,696.24,694.83,0.28784019]
[1736714765860,0.26419541,696.26,694.83,0.28784019]
[1736714766168,0.26419541,696.25,694.83,0.28784019]
[1736714766359,0.26419541,696.24,694.83,0.28784019]
[1736714766558,0.28715003,696.5,694.83,0.28784019]
[1736714766559,0.26419541,696.23,694.83,0.28784019]
[1736714766762,0.26419541,696.22,694.83,0.28784019]
[1736714766965,0.26419751,696.21,694.83,0.28784019]
[1736714767166,1.07413234,696.3,694.83,0.28784019]
[1736714767469,1.07413234,696.22,694.83,0.28784019]
[1736714767765,0.26419978,696.21,694.83,0.28784019]
[1736714768363,0.26420458,696.2,694.83,0.28784019]
[1736714770068,1.07413234,696.21,694.83,0.28784019]
[1736714770469,0.26420586,696.2,694.83,0.28784019]
[1736714771067,1.07413234,696.21,694.83,0.28784019]
[1736714771470,1.07413234,696.2,694.83,0.28784019]
[1736714772373,1.07413234,696.24,694.83,0.28784019]
[1736714773474,0.26418714,696.23,694.83,0.28784019]
[1736714774274,1.07413234,696.22,694.83,0.28784019]
[1736714775577,0.26418619,696.21,694.83,0.28784019]
[1736714776177,1.07413234,696.2,694.83,0.28784019]
[1736714777178,1.07413234,696.19,694.83,0.28784019]
[1736714778276,1.07413234,696.17,694.83,0.28784019]
[1736714779875,1.07413234,696.15,694.83,0.28784019]
[1736714780880,1.07413234,696.17,694.83,0.28784019]
[1736714782384,1.07413234,696.1,694.83,0.28784019]
[1736714783478,0.88592149,696.49,694.83,0.28784019]
[1736714783479,1.07413234,696.08,694.83,0.28784019]
[1736714784779,0.88592149,696.49,694.83,0.28784019]
[1736714784780,1.07413234,696.07,694.83,0.28784019]
[1736714786474,1.07413234,696.06,694.83,0.28784019]
[1736714787582,1.07413234,696.07,694.83,0.28784019]
[1736714789580,1.07413234,696.01,694.83,0.28784019]
[1736714790581,1.07413234,696.03,694.83,0.28784019]
[1736714791783,1.07413234,696.02,694.83,0.28784019]
[1736714793683,1.07413234,696.14,694.83,0.28784019]
[1736714795786,1.07413234,696.12,694.83,0.28784019]
[1736714796584,1.07413234,696.13,694.83,0.28784019]
[1736714797691,1.07413234,696.11,694.83,0.28784019]
[1736714798886,1.07413234,696.1,694.83,0.28784019]
[1736714800490,1.07413234,696.1,694.54,2.8242995]
[1736714800696,1.07413234,696.09,694.54,2.8242995]
[1736714800890,1.07413234,696.09,694.55,2.98514059]
[1736714801096,1.07413234,696.09,694.56,2.8242995]
[1736714801891,1.07413234,696.08,694.56,2.8242995]
[1736714802596,1.07413234,696.08,694.57,2.98514059]
[1736714802597,0.26419452,696.07,694.57,2.98514059]
[1736714802797,1.07413234,696.08,694.58,2.8242995]
[1736714803390,1.07413234,695.95,694.77,1.29053059]
[1736714804698,1.07413234,695.99,694.73,2.8242995]
[1736714804899,1.07413234,695.99,694.74,2.8242995]
[1736714805098,1.07413234,695.99,694.75,2.8242995]
[1736714805300,1.07413234,695.99,694.71,2.98514059]
[1736714805301,1.07413234,695.99,694.76,2.8242995]
[1736714805599,1.07413234,695.99,694.77,2.8242995]
[1736714805799,1.07413234,695.99,694.78,2.8242995]
[1736714805995,1.07413234,695.99,694.79,2.8242995]
[1736714806395,1.07413234,695.96,694.79,2.8242995]
[1736714807398,1.07413234,695.97,694.8,2.98514059]
[1736714807602,1.07413234,695.97,694.81,2.8242995]
[1736714807902,1.07413234,695.97,694.8,2.98514059]
[1736714809204,1.07413234,696.27,694.8,2.98514059]
[1736714809600,1.07413234,696.27,694.42,2.98514059]
[1736714809802,1.07413234,696.27,694.43,2.82742234]
[1736714810105,1.07413234,696.27,694.44,2.82742234]
[1736714810403,1.07413234,696.27,694.45,2.82742234]
[1736714810607,1.07413234,696.27,694.46,4.3285007]
[1736714810808,1.07413234,696.27,694.47,2.82742234]
[1736714811209,1.07413234,696.33,694.48,2.98514059]
[1736714811402,1.07413234,696.33,694.49,1.74224758]
[1736714812207,1.07413234,696.35,694.49,1.74224758]
[1736714813005,0.26417179,696.34,694.49,2.82740244]
[1736714813307,0.26417179,696.34,694.5,2.82740244]
[1736714813511,0.26417179,696.34,694.51,2.82740244]
[1736714813710,0.26417179,696.34,694.52,2.82740244]
[1736714813911,0.26417179,696.34,694.53,2.82740244]
[1736714814112,0.26417179,696.34,694.54,2.82740244]
[1736714814414,1.07413234,696.24,694.56,1.29053059]
[1736714814607,1.07413234,696.24,694.56,4.11793303]
[1736714814912,1.07413234,696.24,694.57,2.82740244]
[1736714815407,1.07413234,696.19,694.57,2.82740244]
[1736714815610,1.07413234,696.19,694.58,2.82740244]
[1736714815809,1.07413234,696.19,694.59,2.82740244]
[1736714816011,1.07413234,696.19,694.6,2.82740244]
[1736714816211,1.07413234,696.2,694.61,2.82740244]
[1736714816412,1.07413234,696.2,694.56,2.82740244]
[1736714816712,1.07413234,696.2,694.62,2.98514059]
[1736714816912,1.07413234,696.2,694.63,2.82740244]
[1736714817909,0.2641886,696.19,694.63,2.82740244]
[1736714818107,0.2641886,696.19,694.64,2.98514059]
[1736714818411,0.2641886,696.19,694.65,2.82740244]
[1736714819311,1.07413234,696.09,694.65,2.82740244]
[1736714819709,1.07413234,696.09,694.66,2.98514059]
[1736714819913,1.07413234,696.09,694.67,2.82740244]
[1736714820413,1.07413234,696.08,694.67,2.82740244]
[1736714821313,1.07413234,696.08,694.68,2.98514059]
[1736714821513,1.07413234,696.08,694.69,1.74224758]
[1736714822214,1.07413234,696.11,694.69,1.74224758]
[1736714823016,1.07413234,696.11,694.47,2.82770878]
[1736714823215,1.07413234,696.09,694.47,2.82770878]
[1736714824018,1.07413234,696.09,694.48,2.98514059]
[1736714824214,1.07413234,696.09,694.5,0.28797696]
[1736714825520,1.07413234,696.2,694.6,1.29053059]
[1736714826814,1.07413234,696.2,694.53,2.82770878]
[1736714826815,1.07413234,696.25,694.59,1.29053059]
[1736714827920,1.07413234,696.26,694.59,4.11823937]
[1736714828118,1.07413234,696.26,694.6,2.82770878]
[1736714828823,1.07413234,696.26,694.61,2.98514059]
[1736714829020,1.07413234,696.26,694.62,2.82770878]
[1736714829922,1.07413234,696.23,694.76,1.29053059]
[1736714830826,1.07413234,696.24,694.76,1.29053059]
[1736714831022,1.07413234,696.24,694.78,0.2878609]
[1736714832327,1.07413234,696.45,694.78,0.2878609]
[1736714832328,1.07413234,696.28,694.78,0.2878609]
[1736714832927,1.07413234,696.59,694.78,0.2878609]
[1736714833224,0.28711705,696.58,694.78,0.2878609]
[1736714842030,0.26411418,696.57,694.78,0.2878609]
[1736714843028,1.07413234,696.45,694.78,0.2878609]
[1736714844235,1.07413234,696.47,694.78,0.2878609]
[1736714845430,0.26411011,696.46,694.78,0.2878609]
[1736714846035,1.07413234,696.43,694.78,0.2878609]
[1736714846234,0.26411011,696.42,694.78,0.2878609]
[1736714847031,0.26411011,696.41,694.78,0.2878609]
[1736714847232,1.07413234,696.44,694.78,0.2878609]
[1736714847434,0.26411069,696.43,694.78,0.2878609]
[1736714849636,1.07413234,696.36,694.84,1.29053059]
[1736714849838,0.26411069,696.35,694.86,0.28782776]
[1736714850437,0.26411069,696.35,694.86,1.57835835]
[1736714850636,0.26411069,696.34,694.86,1.57835835]
[1736714850937,0.26411069,696.33,694.86,1.57835835]
[1736714851137,0.26411069,696.32,694.86,1.57835835]
[1736714851436,0.26411069,696.31,694.87,1.29053059]
[1736714851733,1.07413234,696.38,694.89,0.28781533]
[1736714852035,0.26409945,696.37,694.89,0.28781533]
[1736714852731,0.26409945,696.36,694.89,0.28781533]
[1736714852931,0.26409945,696.35,694.89,0.28781533]
[1736714853135,0.26409945,696.34,694.89,0.28781533]
[1736714853437,0.26409945,696.33,694.89,0.28781533]
[1736714853637,0.26409945,696.32,694.89,3.11171746]
[1736714853838,0.26409945,696.31,694.89,6.10995134]
[1736714854038,1.07413234,696.38,694.9,2.82390213]
[1736714854240,0.26409919,696.37,694.9,2.82390213]
[1736714854836,0.26409821,696.36,694.9,2.82390213]
[1736714855034,1.07413234,696.38,694.9,2.82390213]
[1736714855035,0.26409821,696.35,694.9,2.82390213]
[1736714855237,0.26409821,696.34,694.92,0.28780291]
[1736714855434,0.26409821,696.33,694.92,0.28780291]
[1736714855633,0.26409821,696.32,694.92,1.37108163]
[1736714855836,1.07413234,696.38,694.92,3.11170504]
[1736714856038,0.2640966,696.37,694.92,3.11170504]
[1736714857235,0.2640966,696.37,694.93,2.99823388]
[1736714857437,1.07413234,696.38,694.95,0.28779048]
[1736714857642,0.26409182,696.37,694.95,0.28779048]
[1736714858445,0.26409182,696.37,694.95,3.28602436]
[1736714858644,0.26409182,696.37,694.96,2.82390213]
[1736714858645,1.07413234,696.36,694.96,2.82390213]
[1736714858946,1.07413234,696.36,694.98,0.28777806]
[1736714859345,1.07413234,696.42,694.98,0.28777806]
[1736714859742,1.07413234,696.42,694.98,1.37105678]
[1736714859940,1.07413234,696.42,694.98,3.11168019]
[1736714861646,1.07413234,696.42,694.99,2.99823388]
[1736714861949,1.07413234,696.42,695.01,0.28776564]
[1736714863546,1.07413234,696.42,695.01,3.28599952]
[1736714863740,1.07413234,696.42,695.02,1.74062341]
[1736714864548,1.07413234,696.44,695.04,0.28775322]
[1736714866746,1.07413234,696.43,695.04,0.28775322]
[1736714867749,1.07413234,696.44,695.04,0.28775322]
[1736714868750,0.2640727,696.43,695.04,0.28775322]
[1736714869749,1.07413234,696.37,695.04,0.28775322]
[1736714872249,1.07413234,696.37,695.04,3.2859871]
[1736714872554,1.07413234,696.36,695.05,2.82862881]
[1736714872851,1.07413234,696.36,695.07,0.2877408]
[1736714873352,1.07413234,696.39,695.07,0.2877408]
[1736714873954,1.07413234,696.39,695.07,1.3757462]
[1736714874154,1.07413234,696.39,695.07,3.11636961]
[1736714874450,1.07413234,696.4,695.07,3.11636961]
[1736714874849,1.07413234,696.4,695.08,2.99823388]
[1736714875050,1.07413234,696.4,695.1,0.28772838]
[1736714875251,1.07413234,696.48,695.1,0.28772838]
[1736714875954,1.07413234,696.49,695.1,3.28596226]
[1736714876155,1.07413234,696.49,695.11,2.82862881]
[1736714876749,1.07413234,696.49,695.13,0.28771596]
[1736714877952,1.07413234,696.49,695.13,1.37572136]
[1736714878153,1.07413234,696.49,695.13,3.11634477]
[1736714879054,1.07413234,696.49,695.14,2.99823388]
[1736714879258,1.07413234,696.5,695.16,0.28770355]
[1736714881155,0.28711705,696.58,695.16,0.28770355]
[1736714881156,1.07413234,696.49,695.16,0.28770355]
[1736714881657,1.07413234,696.52,695.16,0.28770355]
[1736714881856,0.26404658,696.51,695.16,0.28770355]
[1736714882252,1.07413234,696.52,695.16,0.28770355]
[1736714882658,1.07413234,696.49,695.16,0.28770355]
[1736714883455,1.07413234,696.53,695.16,0.28770355]
[1736714884357,1.07413234,696.54,695.16,0.28770355]
[1736714885560,1.07413234,696.55,695.16,0.28770355]
[1736714886360,0.28711705,696.58,695.16,0.28770355]
[1736714886561,0.26402152,696.57,695.16,0.28770355]
[1736714888460,0.26402152,696.57,695.16,3.11607368]
[1736714888666,0.28711705,696.58,695.16,3.11607368]
[1736714889468,0.28711705,696.58,695.17,2.99823388]
[1736714889766,0.28711705,696.58,695.18,2.82837013]
[1736714890464,0.28711705,696.58,695.2,0.28768699]
[1736714891061,0.26400236,696.57,695.2,0.28768699]
[1736714891265,0.26400236,696.57,695.2,1.37543371]
[1736714891470,0.26400236,696.57,695.2,3.11605712]
[1736714892162,0.28711705,696.58,695.21,2.99823388]
[1736714892367,0.26399681,696.57,695.22,2.82837013]
[1736714892564,0.28711705,696.58,695.22,2.82837013]
[1736714893166,1.07413234,696.63,695.22,2.82837013]
[1736714893365,0.2639936,696.62,695.22,2.82837013]
[1736714893662,0.2639936,696.62,695.23,2.99823388]
[1736714893866,0.2639936,696.61,695.24,2.82837013]
[1736714894067,1.07413234,696.64,695.24,2.82837013]
[1736714894269,0.26398128,696.63,695.24,2.82837013]
[1736714894570,0.26398128,696.63,695.26,0.28766216]
[1736714894967,0.26397957,696.62,695.26,1.37540888]
[1736714895169,0.26397957,696.61,695.26,3.11603229]